[Event "Eurasia Open Cup 2019"]
[Site "Ekaterinburg"]
[Date "2019.07.31"]
[Round "1.44"]
[White "Buchina, Polina"]
[Black "Postnikov, Daniil"]
[Result "0-1"]
[ECO "D79"]
[WhiteElo "1863"]
[BlackElo "2354"]
[Annotator "NA"]
[PlyCount "124"]
[EventDate "2019.07.31"]
[EventType "swiss"]
[EventCountry "RUS"]
[SourceTitle "playchess.com"]
[Source "ChessBase"]
[SourceQuality "1"]
[TimeControl "5400+30"]

1. c4 {[%emt 0:12:41]} Nf6 {[%emt 0:47:03]} 2. g3 {[%emt 0:00:51]} c6 {[%emt 0:05:06]} 3. Bg2 {[%emt 0:02:34]} d5 {[%emt 0:06:12]} 4. cxd5 {[%emt 0:13:41]} cxd5 {[%emt 0:03:02]} 5. d4 {[%emt 0:01:15]} g6 {[%emt 0:06:18]} 6. Nc3 {[%emt 0:13:12]} Bg7 {[%emt 0:02:20]} 7. Nf3 {[%emt 0:00:14]} Ne4 {[%emt 0:01:41]} 8. O-O {[%emt 0:00:03]} Nc6 {[%emt 0:04:59]} 9. Bf4 {[%emt 0:00:17]} O-O {[%emt 0:00:01]} 10. Ne5 {[%emt 0:00:22]} Nxc3 {[%emt 0:01:34]} 11. bxc3 {[%emt 0:01:23]} Na5 {[%emt 0:02:31]} 12. e4 {[%emt 0:13:24]} e6 {[%emt 0:07:35]} 13. Qf3 {[%emt 0:00:46]} f6 {[%emt 0:00:05]} 14. Nd3 {[%emt 0:00:56]} e5 {[%emt 0:00:16]} 15. Be3 {[%emt 0:08:14]} b6 {[%emt 0:02:48]} 16. Nb4 {[%emt 0:02:59]} dxe4 {[%emt 0:00:01]} 17. Qxe4 {[%emt 0:00:14]} Bb7 {[%emt 0:01:18]} 18. Qd3 {[%emt 0:00:45]} Bxg2 {[%emt 0:04:51]} 19. Kxg2 {[%emt 0:00:10]} Rc8 {[%emt 0:00:36]} 20. Rac1 {[%emt 0:00:53]} Nc4 {[%emt 0:00:01]} 21. Qe4 {[%emt 0:01:00]} Re8 {[%emt 0:00:46]} 22. Qd5+ {[%emt 0:00:55]} Qxd5+ {[%emt 0:00:50]} 23. Nxd5 {[%emt 0:00:25]} Rcd8 {[%emt 0:00:00]} 24. Nb4 {[%emt 0:00:29]} a5 {[%emt 0:00:37]} 25. Nd3 {[%emt 0:01:17]} Nxe3+ {[%emt 0:00:22]} 26. fxe3 {[%emt 0:02:26]} f5 {[%emt 0:00:25]} 27. Rb1 {[%emt 0:00:18]} Rc8 {[%emt 0:01:02]} 28. Rxb6 {[%emt 0:00:38]} Rxc3 {[%emt 0:00:34]} 29. Nxe5 {[%emt 0:02:31]} Bxe5 {[%emt 0:00:08]} 30. dxe5 {[%emt 0:00:28]} Rxe5 {[%emt 0:00:26]} 31. Rf2 {[%emt 0:01:53]} Rcxe3 {[%emt 0:01:23]} 32. Rbb2 {[%emt 0:00:11]} Kg7 {[%emt 0:00:00]} 33. Rfd2 {[%emt 0:02:29]} Kf6 {[%emt 0:00:37]} 34. Kf2 {[%emt 0:01:20]} Kg5 {[%emt 0:00:22]} 35. Rd7 {[%emt 0:00:04]} h6 {[%emt 0:00:33]} 36. Rd6 {[%emt 0:00:02]} Re6 {[%emt 0:00:10]} 37. Rd5 {[%emt 0:00:32]} Ra3 {[%emt 0:00:38]} 38. Rd4 {[%emt 0:00:20]} Rae3 {[%emt 0:01:07]} 39. Rd5 {[%emt 0:03:29]} a4 {[%emt 0:00:00]} 40. Rc2 {[%emt 0:00:00]} Kg4 {[%emt 0:00:00]} 41. Rd4+ {[%emt 0:00:00]} R3e4 {[%emt 0:00:15]} 42. Rcc4 {[%emt 0:00:00]} Kh3 {[%emt 0:00:40]} 43. Rxa4 {[%emt 0:00:16]} Kxh2 {[%emt 0:01:21]} 44. Rxe4 {[%emt 0:00:43]} fxe4 {[%emt 0:00:48]} 45. Ra3 {[%emt 0:00:13]} Rf6+ {[%emt 0:00:31]} 46. Ke2 {[%emt 0:03:14]} Kg2 {[%emt 0:00:13]} 47. Ra4 {[%emt 0:00:00]} Kxg3 {[%emt 0:00:06]} 48. Rxe4 {[%emt 0:00:00]} Rf2+ {[%emt 0:01:15]} 49. Ke3 {[%emt 0:00:53]} Rxa2 {[%emt 0:00:07]} 50. Re6 {[%emt 0:00:07]} g5 {[%emt 0:00:19]} 51. Rxh6 {[%emt 0:00:27]} g4 {[%emt 0:00:33]} 52. Rg6 {[%emt 0:00:32]} Kh3 {[%emt 0:00:38]} 53. Rh6+ {[%emt 0:00:00]} Kg2 {[%emt 0:00:19]} 54. Rg6 {[%emt 0:14:54]} g3 {[%emt 0:01:37]} 55. Rg7 {[%emt 0:00:30]} Kh2 {[%emt 0:00:30]} 56. Rh7+ {[%emt 0:00:30]} Kg1 {[%emt 0:00:30]} 57. Rg7 {[%emt 0:00:30]} g2 {[%emt 0:00:30]} 58. Rg8 {[%emt 0:00:30]} Kf1 {[%emt 0:00:30]} 59. Rf8+ {[%emt 0:00:30]} Ke1 {[%emt 0:00:30]} 60. Rg8 {[%emt 0:00:30]} Re2+ {[%emt 0:00:30]} 61. Kd3 {[%emt 0:00:30]} Kf1 {[%emt 0:00:30]} 62. Ra8 {[%emt 0:00:30]} g1=Q {[%emt 0:00:30]} 0-1

[Event "Eurasia Open Cup 2019"]
[Site "Ekaterinburg"]
[Date "2019.08.01"]
[Round "2.3"]
[White "Pridorozhni, Aleksei"]
[Black "Tsybikov, Tumen"]
[Result "1-0"]
[ECO "B51"]
[WhiteElo "2586"]
[BlackElo "2281"]
[Annotator "ChessBase"]
[PlyCount "51"]
[EventDate "2019.07.31"]
[EventType "swiss"]
[EventCountry "RUS"]
[SourceTitle "playchess.com"]
[Source "ChessBase"]
[SourceQuality "1"]
[TimeControl "5400+30"]

1. e4 {[%emt 0:02:10]} c5 {[%emt 0:00:00]} 2. Nf3 {[%emt 0:00:08]} d6 {[%emt 0:00:00]} 3. Bb5+ {[%emt 0:00:11]} Nd7 {[%emt 0:00:00]} 4. O-O {[%emt 0:00:10]} a6 {[%emt 0:00:02]} 5. Bd3 {[%emt 0:00:10]} Ngf6 {[%emt 0:02:03]} 6. Re1 {[%emt 0:00:12]} e6 {[%emt 0:01:03]} 7. c3 {[%emt 0:00:10]} b5 {[%emt 0:02:26]} 8. Bc2 {[%emt 0:00:25]} Be7 {[%emt 0:01:30]} 9. d4 {[%emt 0:00:20]} O-O {[%emt 0:01:34]} 10. e5 {[%emt 0:02:29]} Nd5 {[%emt 0:05:55]} 11. Qd3 {[%emt 0:01:55]} g6 {[%emt 0:00:33]} 12. Bh6 {[%emt 0:07:15]} Re8 {[%emt 0:03:40]} 13. exd6 {[%emt 0:01:25]} Bxd6 {[%emt 0:03:00]} 14. Nbd2 {[%emt 0:00:00]} cxd4 {[%emt 0:02:05]} 15. Qxd4 {[%emt 0:00:22]} Bf8 {[%emt 0:10:02]} 16. Bxf8 {[%emt 0:00:00]} Rxf8 {[%emt 0:08:38]} 17. Ne4 {[%emt 0:01:02]} Bb7 {[%emt 0:00:54]} 18. Rad1 {[%emt 0:00:49]} N7f6 {[%emt 0:03:56]} 19. Nc5 {[%emt 0:02:08]} Qc7 {[%emt 0:03:27]} 20. Ne5 {[%emt 0:09:45]} Rfd8 {[%emt 0:04:04]} 21. b4 {[%emt 0:03:02]} Ne7 {[%emt 0:04:14]} 22. Qh4 {[%emt 0:03:56]} Nfd5 {[%emt 0:05:48]} 23. Nxf7 {[%emt 0:01:48]} Kxf7 {[%emt 0:08:25]} 24. Qxh7+ {[%emt 0:02:44]} Ke8 {[%emt 0:02:52]} 25. Rxe6 {[%emt 0:01:01]} Kf8 {[%emt 0:00:30]} 26. Rf6+ {[%emt 0:03:45]} 1-0

[Event "Eurasia Open Cup 2019"]
[Site "Ekaterinburg"]
[Date "2019.08.01"]
[Round "2.4"]
[White "Pogorelskikh, Sergey"]
[Black "Shaposhnikov, Evgeny"]
[Result "0-1"]
[ECO "C78"]
[WhiteElo "2284"]
[BlackElo "2575"]
[Annotator "ChessBase"]
[PlyCount "101"]
[EventDate "2019.07.31"]
[EventType "swiss"]
[EventCountry "RUS"]
[SourceTitle "playchess.com"]
[Source "ChessBase"]
[SourceQuality "1"]
[TimeControl "5400+30"]

1. e4 {[%emt 0:00:00]} e5 {[%emt 0:08:59]} 2. Nf3 {[%emt 0:00:05]} Nc6 {[%emt 0:00:10]} 3. Bb5 {[%emt 0:00:08]} a6 {[%emt 0:00:39]} 4. Ba4 {[%emt 0:00:34]} Nf6 {[%emt 0:00:09]} 5. O-O {[%emt 0:00:14]} b5 {[%emt 0:00:00]} 6. Bb3 {[%emt 0:00:06]} Bb7 {[%emt 0:00:11]} 7. Re1 {[%emt 0:00:58]} Bc5 {[%emt 0:00:00]} 8. c3 {[%emt 0:00:16]} d6 {[%emt 0:00:00]} 9. d4 {[%emt 0:01:27]} Bb6 {[%emt 0:00:00]} 10. Be3 {[%emt 0:01:32]} O-O {[%emt 0:00:06]} 11. d5 {[%emt 0:00:42]} Ne7 {[%emt 0:00:47]} 12. Bxb6 {[%emt 0:00:43]} cxb6 {[%emt 0:00:31]} 13. a4 {[%emt 0:12:37]} bxa4 {[%emt 0:00:00]} 14. Bxa4 {[%emt 0:00:14]} Ng6 {[%emt 0:00:01]} 15. Nbd2 {[%emt 0:09:41]} h6 {[%emt 0:01:09]} 16. Nf1 {[%emt 0:07:37]} Nf4 {[%emt 0:02:17]} 17. Ng3 {[%emt 0:02:09]} Bc8 {[%emt 0:00:28]} 18. Qd2 {[%emt 0:01:43]} Nh7 {[%emt 0:00:31]} 19. Ne2 {[%emt 0:05:25]} Ng6 {[%emt 0:02:38]} 20. Ng3 {[%emt 0:07:22]} Bg4 {[%emt 0:01:12]} 21. Bd1 {[%emt 0:03:45]} Qf6 {[%emt 0:02:57]} 22. Qe3 {[%emt 0:00:44]} b5 {[%emt 0:04:33]} 23. Nd2 {[%emt 0:02:07]} Bd7 {[%emt 0:10:30]} 24. Rf1 {[%emt 0:02:11]} a5 {[%emt 0:01:38]} 25. Bc2 {[%emt 0:05:50]} Ng5 {[%emt 0:03:42]} 26. Nh5 {[%emt 0:03:33]} Qe7 {[%emt 0:01:01]} 27. Ng3 {[%emt 0:00:32]} Nf4 {[%emt 0:05:12]} 28. Nf3 {[%emt 0:03:58]} Qf6 {[%emt 0:00:34]} 29. Bd1 {[%emt 0:00:51]} g6 {[%emt 0:07:15]} 30. Kh1 {[%emt 0:01:41]} Kg7 {[%emt 0:03:51]} 31. Ne1 {[%emt 0:01:35]} h5 {[%emt 0:02:53]} 32. Ne2 {[%emt 0:03:57]} h4 {[%emt 0:06:42]} 33. f3 {[%emt 0:03:13]} h3 {[%emt 0:01:36]} 34. Nxf4 {[%emt 0:01:03]} exf4 {[%emt 0:00:33]} 35. Qd4 {[%emt 0:01:45]} hxg2+ {[%emt 0:02:35]} 36. Nxg2 {[%emt 0:04:51]} Nh3 {[%emt 0:00:45]} 37. Ne1 {[%emt 0:00:27]} Qxd4 {[%emt 0:02:03]} 38. cxd4 {[%emt 0:00:10]} Rfc8 {[%emt 0:02:44]} 39. Be2 {[%emt 0:04:01]} b4 {[%emt 0:03:02]} 40. Kg2 {[%emt 0:00:04]} a4 {[%emt 0:00:09]} 41. Rh1 {[%emt 0:02:04]} a3 {[%emt 0:01:00]} 42. b3 {[%emt 0:00:10]} Rc3 {[%emt 0:00:38]} 43. Bc4 {[%emt 0:01:11]} Rc8 {[%emt 0:01:43]} 44. Kf1 {[%emt 0:00:58]} R8xc4 {[%emt 0:00:54]} 45. bxc4 {[%emt 0:00:12]} b3 {[%emt 0:02:33]} 46. Rxa3 {[%emt 0:03:54]} b2 {[%emt 0:02:58]} 47. Rxc3 {[%emt 0:00:06]} b1=Q {[%emt 0:00:15]} 48. c5 {[%emt 0:02:29]} Qa1 {[%emt 0:00:06]} 49. Rc2 {[%emt 0:00:04]} Ba4 {[%emt 0:00:06]} 50. Kg2 {[%emt 0:01:03]} Bxc2 {[%emt 0:03:47]} 51. Kxh3 {[%emt 0:00:21]} 0-1

[Event "Eurasia Open Cup 2019"]
[Site "Ekaterinburg"]
[Date "2019.08.01"]
[Round "2.5"]
[White "Bocharov, Ivan"]
[Black "Protopopova, Anastasiya"]
[Result "1-0"]
[ECO "A28"]
[WhiteElo "2559"]
[BlackElo "2272"]
[Annotator "ChessBase"]
[PlyCount "71"]
[EventDate "2019.07.31"]
[EventType "swiss"]
[EventCountry "RUS"]
[SourceTitle "playchess.com"]
[Source "ChessBase"]
[SourceQuality "1"]
[TimeControl "5400+30"]

1. c4 {[%emt 0:00:00]} e5 {[%emt 0:00:47]} 2. Nc3 {[%emt 0:00:00]} Nf6 {[%emt 0:00:00]} 3. Nf3 {[%emt 0:00:00]} Nc6 {[%emt 0:00:00]} 4. e3 {[%emt 0:00:00]} Bb4 {[%emt 0:00:27]} 5. Qc2 {[%emt 0:00:00]} Bxc3 {[%emt 0:00:55]} 6. bxc3 {[%emt 0:00:00]} e4 {[%emt 0:05:20]} 7. Ng5 {[%emt 0:00:00]} Qe7 {[%emt 0:01:19]} 8. f3 {[%emt 0:00:15]} exf3 {[%emt 0:00:49]} 9. Nxf3 {[%emt 0:00:04]} O-O {[%emt 0:01:31]} 10. Be2 {[%emt 0:00:34]} b6 {[%emt 0:03:03]} 11. O-O {[%emt 0:01:36]} h6 {[%emt 0:01:07]} 12. d3 {[%emt 0:04:05]} d5 {[%emt 0:03:58]} 13. cxd5 {[%emt 0:01:44]} Nxd5 {[%emt 0:01:25]} 14. Qd2 {[%emt 0:00:59]} Re8 {[%emt 0:14:58]} 15. e4 {[%emt 0:00:18]} Nf6 {[%emt 0:00:13]} 16. Nd4 {[%emt 0:00:46]} Nxd4 {[%emt 0:00:31]} 17. cxd4 {[%emt 0:00:43]} Ba6 {[%emt 0:00:32]} 18. Bb2 {[%emt 0:02:45]} Rad8 {[%emt 0:11:16]} 19. Rae1 {[%emt 0:00:06]} Nd7 {[%emt 0:03:50]} 20. Bd1 {[%emt 0:01:30]} Nf8 {[%emt 0:02:10]} 21. Ba4 {[%emt 0:05:18]} b5 {[%emt 0:01:56]} 22. Bb3 {[%emt 0:02:11]} Ne6 {[%emt 0:05:23]} 23. Re3 {[%emt 0:02:15]} Kh7 {[%emt 0:03:32]} 24. Rg3 {[%emt 0:00:01]} f6 {[%emt 0:00:17]} 25. Qf2 {[%emt 0:02:01]} Kh8 {[%emt 0:03:12]} 26. Bxe6 {[%emt 0:05:32]} Qxe6 {[%emt 0:01:23]} 27. d5 {[%emt 0:01:04]} Qf7 {[%emt 0:09:08]} 28. Qxa7 {[%emt 0:06:31]} Ra8 {[%emt 0:00:13]} 29. Qe3 {[%emt 0:00:03]} Kh7 {[%emt 0:01:10]} 30. Rh3 {[%emt 0:00:28]} Bc8 {[%emt 0:06:59]} 31. Rxf6 {[%emt 0:03:37]} Qxf6 {[%emt 0:01:27]} 32. Bxf6 {[%emt 0:02:43]} Bxh3 {[%emt 0:01:01]} 33. Bd4 {[%emt 0:01:17]} Bd7 {[%emt 0:03:25]} 34. e5 {[%emt 0:01:21]} Rxa2 {[%emt 0:00:36]} 35. e6 {[%emt 0:00:33]} Bc8 {[%emt 0:00:10]} 36. Qe4+ {[%emt 0:02:12]} 1-0

[Event "Eurasia Open Cup 2019"]
[Site "Ekaterinburg"]
[Date "2019.08.01"]
[Round "2.6"]
[White "Isanzhulov, Arystan"]
[Black "Zhigalko, Andrey"]
[Result "0-1"]
[ECO "B30"]
[WhiteElo "2278"]
[BlackElo "2549"]
[Annotator "ChessBase"]
[PlyCount "120"]
[EventDate "2019.07.31"]
[EventType "swiss"]
[EventCountry "RUS"]
[SourceTitle "playchess.com"]
[Source "ChessBase"]
[SourceQuality "1"]
[TimeControl "5400+30"]

1. e4 {[%emt 0:00:00]} c5 {[%emt 0:00:00]} 2. Nc3 {[%emt 0:00:16]} Nc6 {[%emt 0:00:00]} 3. Bb5 {[%emt 0:00:38]} Nd4 {[%emt 0:00:00]} 4. Nf3 {[%emt 0:00:07]} e6 {[%emt 0:00:39]} 5. O-O {[%emt 0:00:50]} a6 {[%emt 0:01:42]} 6. Bd3 {[%emt 0:00:36]} Nc6 {[%emt 0:01:03]} 7. e5 {[%emt 0:02:42]} d5 {[%emt 0:13:40]} 8. exd6 {[%emt 0:00:08]} Bxd6 {[%emt 0:00:39]} 9. Re1 {[%emt 0:01:13]} Nf6 {[%emt 0:05:15]} 10. Ne4 {[%emt 0:00:00]} O-O {[%emt 0:06:14]} 11. Nxf6+ {[%emt 0:05:39]} Qxf6 {[%emt 0:01:07]} 12. Be4 {[%emt 0:01:18]} e5 {[%emt 0:16:59]} 13. h3 {[%emt 0:33:39]} Bd7 {[%emt 0:01:01]} 14. c3 {[%emt 0:08:59]} h6 {[%emt 0:02:38]} 15. d4 {[%emt 0:08:03]} exd4 {[%emt 0:04:08]} 16. cxd4 {[%emt 0:01:20]} cxd4 {[%emt 0:04:13]} 17. Bxc6 {[%emt 0:00:24]} Bxc6 {[%emt 0:01:23]} 18. Qxd4 {[%emt 0:00:05]} Qxd4 {[%emt 0:02:37]} 19. Nxd4 {[%emt 0:00:07]} Rfe8 {[%emt 0:04:39]} 20. Bd2 {[%emt 0:02:52]} Bd5 {[%emt 0:02:13]} 21. Red1 {[%emt 0:03:09]} Be5 {[%emt 0:04:57]} 22. Bc3 {[%emt 0:00:05]} Rad8 {[%emt 0:01:17]} 23. a3 {[%emt 0:01:18]} f6 {[%emt 0:00:49]} 24. Ne2 {[%emt 0:09:02]} Bb8 {[%emt 0:04:39]} 25. Nd4 {[%emt 0:01:40]} Kf7 {[%emt 0:01:05]} 26. Nf5 {[%emt 0:02:42]} Bb3 {[%emt 0:08:04]} 27. Rxd8 {[%emt 0:00:56]} Rxd8 {[%emt 0:00:01]} 28. Re1 {[%emt 0:01:00]} Rd7 {[%emt 0:02:08]} 29. Nd4 {[%emt 0:00:56]} Bd5 {[%emt 0:00:13]} 30. Nf5 {[%emt 0:00:46]} h5 {[%emt 0:00:54]} 31. Re2 {[%emt 0:00:30]} Be6 {[%emt 0:00:55]} 32. Nd4 {[%emt 0:04:56]} Bc4 {[%emt 0:02:06]} 33. Re1 {[%emt 0:02:55]} Be5 {[%emt 0:00:06]} 34. Ne2 {[%emt 0:00:29]} Re7 {[%emt 0:03:21]} 35. Nd4 {[%emt 0:01:03]} Rd7 {[%emt 0:01:47]} 36. Ne2 {[%emt 0:00:06]} Bb8 {[%emt 0:00:38]} 37. Nd4 {[%emt 0:00:16]} g6 {[%emt 0:00:31]} 38. Nf3 {[%emt 0:00:37]} g5 {[%emt 0:00:15]} 39. Nd2 {[%emt 0:01:25]} Bd5 {[%emt 0:01:40]} 40. Nf1 {[%emt 0:00:20]} Bb3 {[%emt 0:00:29]} 41. Ng3 {[%emt 0:02:45]} h4 {[%emt 0:02:27]} 42. Ne4 {[%emt 0:00:40]} Re7 {[%emt 0:00:57]} 43. Re3 {[%emt 0:00:24]} Bf4 {[%emt 0:00:27]} 44. Bxf6 {[%emt 0:00:57]} Rxe4 {[%emt 0:00:53]} 45. Rxe4 {[%emt 0:01:36]} Kxf6 {[%emt 0:00:09]} 46. Re1 {[%emt 0:00:37]} b5 {[%emt 0:00:02]} 47. g3 {[%emt 0:01:07]} hxg3 {[%emt 0:00:25]} 48. fxg3 {[%emt 0:01:29]} Be5 {[%emt 0:00:30]} 49. Re2 {[%emt 0:00:04]} Bc4 {[%emt 0:00:05]} 50. Rf2+ {[%emt 0:00:44]} Ke6 {[%emt 0:00:59]} 51. Kg2 {[%emt 0:00:01]} Bd5+ {[%emt 0:00:06]} 52. Kh2 {[%emt 0:00:26]} a5 {[%emt 0:00:20]} 53. Re2 {[%emt 0:00:05]} a4 {[%emt 0:00:13]} 54. Rd2 {[%emt 0:00:41]} Be4 {[%emt 0:00:54]} 55. Re2 {[%emt 0:00:58]} Kd5 {[%emt 0:00:43]} 56. Rf2 {[%emt 0:00:40]} Kd4 {[%emt 0:00:17]} 57. Rf8 {[%emt 0:00:40]} Ke3 {[%emt 0:01:20]} 58. Rg8 {[%emt 0:00:50]} Bxb2 {[%emt 0:00:55]} 59. Rxg5 {[%emt 0:00:21]} Bd3 {[%emt 0:00:35]} 60. h4 {[%emt 0:00:05]} Bxa3 {[%emt 0:00:32]} 0-1

[Event "Eurasia Open Cup 2019"]
[Site "Ekaterinburg"]
[Date "2019.08.01"]
[Round "2.7"]
[White "Sivuk, Vitaly"]
[Black "Garifullina, Leya"]
[Result "1-0"]
[ECO "E16"]
[WhiteElo "2546"]
[BlackElo "2268"]
[Annotator "ChessBase"]
[PlyCount "85"]
[EventDate "2019.07.31"]
[EventType "swiss"]
[EventCountry "RUS"]
[SourceTitle "playchess.com"]
[Source "ChessBase"]
[SourceQuality "1"]
[TimeControl "5400+30"]

1. d4 {[%emt 0:01:34]} Nf6 {[%emt 0:00:00]} 2. c4 {[%emt 0:00:08]} e6 {[%emt 0:00:00]} 3. Nf3 {[%emt 0:00:10]} b6 {[%emt 0:00:00]} 4. g3 {[%emt 0:00:00]} Bb7 {[%emt 0:00:00]} 5. Bg2 {[%emt 0:00:00]} Bb4+ {[%emt 0:00:33]} 6. Bd2 {[%emt 0:01:08]} Be7 {[%emt 0:00:00]} 7. Nc3 {[%emt 0:00:40]} O-O {[%emt 0:00:38]} 8. O-O {[%emt 0:00:18]} c6 {[%emt 0:00:12]} 9. e4 {[%emt 0:00:54]} d5 {[%emt 0:00:30]} 10. exd5 {[%emt 0:11:30]} cxd5 {[%emt 0:00:42]} 11. Ne5 {[%emt 0:07:55]} Nc6 {[%emt 0:02:35]} 12. cxd5 {[%emt 0:00:08]} Nxe5 {[%emt 0:00:20]} 13. d6 {[%emt 0:04:47]} Nc6 {[%emt 0:01:38]} 14. dxe7 {[%emt 0:03:24]} Qxe7 {[%emt 0:00:45]} 15. Bg5 {[%emt 0:00:07]} h6 {[%emt 0:00:01]} 16. Bxf6 {[%emt 0:01:54]} Qxf6 {[%emt 0:00:23]} 17. d5 {[%emt 0:02:13]} Na5 {[%emt 0:00:08]} 18. dxe6 {[%emt 0:00:08]} Qxe6 {[%emt 0:01:41]} 19. Re1 {[%emt 0:02:41]} Qf6 {[%emt 0:03:47]} 20. Qg4 {[%emt 0:00:26]} Bxg2 {[%emt 0:01:57]} 21. Kxg2 {[%emt 0:01:41]} Rfd8 {[%emt 0:00:25]} 22. Rad1 {[%emt 0:01:43]} Qc6+ {[%emt 0:00:31]} 23. Qf3 {[%emt 0:00:07]} Qxf3+ {[%emt 0:03:01]} 24. Kxf3 {[%emt 0:01:22]} Kf8 {[%emt 0:01:13]} 25. Nb5 {[%emt 0:02:37]} Nc6 {[%emt 0:00:28]} 26. b3 {[%emt 0:00:02]} Rac8 {[%emt 0:01:11]} 27. h4 {[%emt 0:05:28]} h5 {[%emt 0:02:26]} 28. Rxd8+ {[%emt 0:02:14]} Rxd8 {[%emt 0:06:48]} 29. Rc1 {[%emt 0:09:09]} Nd4+ {[%emt 0:01:32]} 30. Nxd4 {[%emt 0:05:33]} Rxd4 {[%emt 0:00:13]} 31. Rc8+ {[%emt 0:00:17]} Ke7 {[%emt 0:04:10]} 32. Rc7+ {[%emt 0:00:07]} Rd7 {[%emt 0:00:30]} 33. Rxd7+ {[%emt 0:02:53]} Kxd7 {[%emt 0:00:07]} 34. Kf4 {[%emt 0:00:06]} Ke6 {[%emt 0:00:00]} 35. Kg5 {[%emt 0:00:11]} g6 {[%emt 0:00:13]} 36. f4 {[%emt 0:00:09]} b5 {[%emt 0:03:18]} 37. b4 {[%emt 0:00:29]} a6 {[%emt 0:00:08]} 38. a3 {[%emt 0:00:50]} Ke7 {[%emt 0:00:33]} 39. f5 {[%emt 0:04:28]} gxf5 {[%emt 0:04:58]} 40. Kxf5 {[%emt 0:00:17]} f6 {[%emt 0:00:42]} 41. Kg6 {[%emt 0:00:30]} Ke6 {[%emt 0:03:07]} 42. Kxh5 {[%emt 0:00:08]} Kf5 {[%emt 0:03:06]} 43. g4+ {[%emt 0:01:29]} 1-0

[Event "Eurasia Open Cup 2019"]
[Site "Ekaterinburg"]
[Date "2019.08.01"]
[Round "2.8"]
[White "Mamatov, Melis"]
[Black "Sargsyan, Shant"]
[Result "0-1"]
[ECO "C75"]
[WhiteElo "2269"]
[BlackElo "2529"]
[Annotator "ChessBase"]
[PlyCount "104"]
[EventDate "2019.07.31"]
[EventType "swiss"]
[EventCountry "RUS"]
[SourceTitle "playchess.com"]
[Source "ChessBase"]
[SourceQuality "1"]
[TimeControl "5400+30"]

1. e4 {[%emt 0:00:00]} e5 {[%emt 0:00:48]} 2. Nf3 {[%emt 0:00:00]} Nc6 {[%emt 0:00:00]} 3. Bb5 {[%emt 0:00:53]} a6 {[%emt 0:01:27]} 4. Ba4 {[%emt 0:00:11]} d6 {[%emt 0:01:19]} 5. c3 {[%emt 0:04:02]} Bd7 {[%emt 0:03:55]} 6. d3 {[%emt 0:00:37]} g6 {[%emt 0:01:04]} 7. Bc2 {[%emt 0:11:52]} Bg7 {[%emt 0:00:17]} 8. Bg5 {[%emt 0:01:10]} Nge7 {[%emt 0:03:31]} 9. h3 {[%emt 0:04:34]} h6 {[%emt 0:01:02]} 10. Bh4 {[%emt 0:01:44]} g5 {[%emt 0:04:17]} 11. Bg3 {[%emt 0:00:19]} f5 {[%emt 0:01:37]} 12. exf5 {[%emt 0:01:03]} Nxf5 {[%emt 0:00:33]} 13. Nbd2 {[%emt 0:10:34]} Qe7 {[%emt 0:00:11]} 14. Qe2 {[%emt 0:01:03]} O-O-O {[%emt 0:02:39]} 15. O-O-O {[%emt 0:02:26]} Nxg3 {[%emt 0:02:26]} 16. fxg3 {[%emt 0:01:16]} d5 {[%emt 0:04:13]} 17. g4 {[%emt 0:00:01]} Rhe8 {[%emt 0:00:49]} 18. Rhe1 {[%emt 0:04:37]} Qc5 {[%emt 0:01:03]} 19. Nb3 {[%emt 0:02:10]} Qb6 {[%emt 0:03:39]} 20. Qd2 {[%emt 0:02:50]} Kb8 {[%emt 0:01:57]} 21. d4 {[%emt 0:06:41]} e4 {[%emt 0:02:30]} 22. Nh2 {[%emt 0:02:42]} Na5 {[%emt 0:02:28]} 23. Nxa5 {[%emt 0:01:30]} Qxa5 {[%emt 0:03:20]} 24. Kb1 {[%emt 0:03:23]} c6 {[%emt 0:00:02]} 25. Nf1 {[%emt 0:00:50]} Qc7 {[%emt 0:00:32]} 26. Ne3 {[%emt 0:00:08]} Rf8 {[%emt 0:10:23]} 27. c4 {[%emt 0:02:26]} Be6 {[%emt 0:00:48]} 28. cxd5 {[%emt 0:01:11]} cxd5 {[%emt 0:01:30]} 29. Bb3 {[%emt 0:04:25]} Qb6 {[%emt 0:05:48]} 30. Re2 {[%emt 0:03:09]} Rf7 {[%emt 0:00:20]} 31. Nc2 {[%emt 0:00:24]} Rdf8 {[%emt 0:01:04]} 32. Ne3 {[%emt 0:01:10]} Qb5 {[%emt 0:02:39]} 33. Qe1 {[%emt 0:04:16]} Ka7 {[%emt 0:04:26]} 34. Rc2 {[%emt 0:02:48]} Bxd4 {[%emt 0:00:39]} 35. Bc4 {[%emt 0:01:14]} Qb6 {[%emt 0:05:01]} 36. Nxd5 {[%emt 0:05:41]} Bxd5 {[%emt 0:01:58]} 37. Bxd5 {[%emt 0:01:53]} Rf2 {[%emt 0:04:14]} 38. Bb3 {[%emt 0:00:47]} Rxc2 {[%emt 0:00:15]} 39. Kxc2 {[%emt 0:00:09]} Rf2+ {[%emt 0:00:21]} 40. Rd2 {[%emt 0:05:24]} e3 {[%emt 0:00:01]} 41. Rxf2 {[%emt 0:00:00]} exf2 {[%emt 0:00:45]} 42. Qe2 {[%emt 0:00:10]} Qg6+ {[%emt 0:00:18]} 43. Kd2 {[%emt 0:03:30]} Qb1 {[%emt 0:00:06]} 44. Bc4 {[%emt 0:00:59]} Qxb2+ {[%emt 0:07:05]} 45. Kd3 {[%emt 0:00:21]} Qc3+ {[%emt 0:00:50]} 46. Ke4 {[%emt 0:00:53]} b5 {[%emt 0:06:25]} 47. Bd3 {[%emt 0:00:35]} Qc5 {[%emt 0:00:38]} 48. Kf3 {[%emt 0:00:00]} Qf8+ {[%emt 0:05:28]} 49. Ke4 {[%emt 0:00:22]} Qf6 {[%emt 0:00:03]} 50. Kd5 {[%emt 0:00:00]} f1=Q {[%emt 0:01:04]} 51. Qxf1 {[%emt 0:01:23]} Qe5+ {[%emt 0:00:36]} 52. Kc6 {[%emt 0:00:20]} Qe6+ {[%emt 0:00:19]} 0-1

[Event "Eurasia Open Cup 2019"]
[Site "Ekaterinburg"]
[Date "2019.08.01"]
[Round "2.9"]
[White "Kunin, Vitaly"]
[Black "Zasukhin, Vadim"]
[Result "1-0"]
[ECO "E01"]
[WhiteElo "2527"]
[BlackElo "2249"]
[Annotator "ChessBase"]
[PlyCount "57"]
[EventDate "2019.07.31"]
[EventType "swiss"]
[EventCountry "RUS"]
[SourceTitle "playchess.com"]
[Source "ChessBase"]
[SourceQuality "1"]
[TimeControl "5400+30"]

1. d4 {[%emt 0:03:27]} d5 {[%emt 0:00:00]} 2. Nf3 {[%emt 0:00:27]} Nf6 {[%emt 0:00:00]} 3. c4 {[%emt 0:00:12]} c6 {[%emt 0:00:00]} 4. Qc2 {[%emt 0:01:27]} e6 {[%emt 0:00:41]} 5. g3 {[%emt 0:00:31]} Nbd7 {[%emt 0:00:49]} 6. Bg2 {[%emt 0:01:29]} Bb4+ {[%emt 0:00:34]} 7. Nbd2 {[%emt 0:01:12]} b6 {[%emt 0:00:07]} 8. O-O {[%emt 0:00:38]} Bb7 {[%emt 0:02:31]} 9. e4 {[%emt 0:00:36]} O-O {[%emt 0:00:18]} 10. e5 {[%emt 0:01:41]} Ne8 {[%emt 0:01:50]} 11. h4 {[%emt 0:05:56]} Be7 {[%emt 0:00:00]} 12. b3 {[%emt 0:00:08]} Rc8 {[%emt 0:00:28]} 13. Bb2 {[%emt 0:14:31]} c5 {[%emt 0:01:03]} 14. dxc5 {[%emt 0:00:39]} Nxc5 {[%emt 0:00:56]} 15. Rad1 {[%emt 0:00:02]} Nc7 {[%emt 0:02:05]} 16. Rfe1 {[%emt 0:02:46]} h6 {[%emt 0:01:28]} 17. Nh2 {[%emt 0:09:42]} dxc4 {[%emt 0:01:30]} 18. Nxc4 {[%emt 0:12:43]} Nd5 {[%emt 0:02:28]} 19. Qe2 {[%emt 0:00:50]} Rc7 {[%emt 0:00:23]} 20. Nd6 {[%emt 0:01:48]} Bc6 {[%emt 0:06:18]} 21. Ng4 {[%emt 0:07:37]} Kh7 {[%emt 0:02:45]} 22. b4 {[%emt 0:09:03]} Nxb4 {[%emt 0:15:18]} 23. Bxc6 {[%emt 0:02:58]} Nxc6 {[%emt 0:12:00]} 24. Nxf7 {[%emt 0:00:04]} Qe8 {[%emt 0:09:01]} 25. Qc2+ {[%emt 0:00:27]} g6 {[%emt 0:04:12]} 26. Nd6 {[%emt 0:01:37]} Qa8 {[%emt 0:00:04]} 27. Qd2 {[%emt 0:00:43]} g5 {[%emt 0:17:24]} 28. Qc2+ {[%emt 0:00:19]} Kh8 {[%emt 0:00:04]} 29. Qg6 {[%emt 0:00:51]} 1-0